Cogmind - Beta 10.2 @@@ ROGUE MODE // 2021.02.25 @ 12:18:26 Player: ShuSh Result: Destroyed by Y-64 Sentinel with KE Penetrator Performance ------------- Evolutions (5) 2500 Regions Visited (19) 3800 Robots Destroyed (110) 550 Value Destroyed (7594) 7594 Prototype IDs (32) 640 Alien Tech Used (0) 0 Bonus (5737) 5737 TOTAL SCORE: 20821 Bonus ------- High Alert Combat Kills 340 Follower Combat Kills 1606 Entered Garrisons 1200 Used RIF Installer 2500 Aligned with FarCom 300 Friendly Fire -209 Cogmind --------- Core Integrity 0/1000 Matter 268/300 Energy 290/290 System Corruption 7% Temperature Cool (9) Movement Walking (180) Ox2 Location -5/Garrison Parts ------- > --- POWER (1) -------- Reinforced Deuterium Engine > --- PROPULSION (2) --- Flexi-carbon Leg Flexi-carbon Leg > --- UTILITY (12) ----- Large Storage Unit Large Storage Unit Large Storage Unit Large Storage Unit Improved Medium Armor Plating Relay Coupler [NC] (15) Relay Coupler [Swarmer] (2) Relay Coupler [Grunt] (2) Relay Coupler [Brawler] (31) Relay Coupler [Duelist] (31) Relay Coupler [Sentry] (1) > --- WEAPON (2) ------- Improved Remote Datajack Power Sword > --- INVENTORY (28) --- Light Fission Core Reinforced Fission Core Micro Fission Core Improved Treads Carbon-fiber Leg Carbon-fiber Leg Flexi-carbon Leg Relay Coupler [NC] (40) Relay Coupler [NC] (35) Relay Coupler [NC] (36) Relay Coupler [Swarmer] (43) Relay Coupler [Swarmer] (43) Relay Coupler [Swarmer] (48) Relay Coupler [Swarmer] (50) Relay Coupler [Swarmer] (47) Relay Coupler [Swarmer] (54) Relay Coupler [Swarmer] (51) Relay Coupler [Brawler] (34) Relay Coupler [Duelist] (39) Relay Coupler [Sentry] (33) Relay Coupler [Demolisher] (29) Relay Coupler [Specialist] (25) Relay Coupler [Hunter] (24) Tesla Rifle Variable Charge Gun Variable Charge Gun Variable Charge Gun Improved Remote Datajack Peak State ------------ > --- POWER ------------ Light Angular Momentum Engine > --- PROPULSION ------- Flexi-carbon Leg Flexi-carbon Leg > --- UTILITY ---------- Large Storage Unit Large Storage Unit Large Storage Unit Large Storage Unit Heavy Insulated Plating Relay Coupler [NC] Relay Coupler [Swarmer] Relay Coupler [Grunt] Relay Coupler [Duelist] Relay Coupler [Sentry] Relay Coupler [Hunter] > --- WEAPON ----------- Improved Remote Datajack Power Sword > --- INVENTORY -------- Reinforced Deuterium Engine Improved Medium Treads Heavy Treads Carbon-fiber Leg Carbon-fiber Leg Relay Coupler [NC] Relay Coupler [NC] Relay Coupler [NC] Relay Coupler [Swarmer] Relay Coupler [Swarmer] Relay Coupler [Swarmer] Relay Coupler [Swarmer] Relay Coupler [Swarmer] Relay Coupler [Swarmer] Relay Coupler [Brawler] Relay Coupler [Brawler] Relay Coupler [Brawler] Relay Coupler [Duelist] Relay Coupler [Duelist] Relay Coupler [Demolisher] Relay Coupler [Specialist] System Backup Module Chronowheel KE Penetrator Proton Missile Launcher Mini Grenade Launcher Power Sword [Rating: 69] Favorites ----------- Power Reinforced Deuterium Engine Engine Reinforced Deuterium Engine Power Core Micro Fission Core Propulsion Light Treads Treads Light Treads Leg Carbon-fiber Leg Utility Large Storage Unit Device Heat Sink Storage Large Storage Unit Hackware Relay Coupler [Sentry] Protection Improved Heavy Armor Plating Weapon Power Sword Energy Gun Heavy EM Shotgun Energy Cannon Heavy Particle Cannon Ballistic Gun Light Assault Rifle Launcher Proton Missile Launcher Special Weapon Remote Datajack Slashing Weapon Power Sword Special Melee Weapon Improved Datajack Build | -11 -10 -10 -9 -9 -9 -8 -8 -8 -8 -7 -7 -6 -6 -6 -6 -5 -5 -5 -5 ------- Run | Scr Mat Min Mat Min Exi Min Mat Gar Mat Fac Gar Fac Gar Fac Gar Fac Gar Fac Gar Slots Evolved 10 | . . . 2 . . . 2 . . 2 . 2 . . . 2 . . . Power . | . . . . . . . . . . . . . . . . . . . . Propulsion . | . . . . . . . . . . . . . . . . . . . . Utility 10 | . . . 2 . . . 2 . . 2 . 2 . . . 2 . . . Weapon . | . . . . . . . . . . . . . . . . . . . . Parts Attached 213 | . 10 3 9 . 5 . 25 29 4 10 15 14 15 2 19 26 17 10 . Power 14 | . 1 1 . . 1 . 2 2 . 1 1 1 1 . . 2 1 . . Engine 13 | . 1 1 . . 1 . 2 2 . 1 1 1 1 . . 1 1 . . Core 1 | . . . . . . . . . . . . . . . . 1 . . . Reactor . | . . . . . . . . . . . . . . . . . . . . Propulsion 35 | . . 1 2 . . . 4 6 . 2 . 3 1 . 3 5 4 4 . Treads 16 | . . . 2 . . . 4 1 . 2 . 3 1 . 1 . 2 . . Leg 19 | . . 1 . . . . . 5 . . . . . . 2 5 2 4 . Wheel . | . . . . . . . . . . . . . . . . . . . . Hover . | . . . . . . . . . . . . . . . . . . . . Flight . | . . . . . . . . . . . . . . . . . . . . Utility 86 | . 3 . 5 . 4 . 8 9 4 4 10 8 8 1 6 8 5 3 . Device 11 | . . . 1 . . . 3 3 . . 1 . . . . 1 2 . . Storage 21 | . 3 . 1 . 4 . 3 1 2 . . . 1 1 1 3 . 1 . Processor . | . . . . . . . . . . . . . . . . . . . . Hackware 35 | . . . . . . . . 5 2 3 8 6 3 . 3 2 2 1 . Protection 19 | . . . 3 . . . 2 . . 1 1 2 4 . 2 2 1 1 . Artifact . | . . . . . . . . . . . . . . . . . . . . Weapon 78 | . 6 1 2 . . . 11 12 . 3 4 2 5 1 10 11 7 3 . Energy Gun 13 | . 2 . 2 . . . 2 5 . . . . . . . . 1 1 . Energy Cannon 1 | . . . . . . . 1 . . . . . . . . . . . . Ballistic Gun 13 | . 4 1 . . . . 6 1 . 1 . . . . . . . . . Ballistic Cannon . | . . . . . . . . . . . . . . . . . . . . Launcher 14 | . . . . . . . 2 2 . . 1 . 2 . 4 1 2 . . Special Weapon 21 | . . . . . . . . . . 1 2 2 2 . 5 5 2 2 . Impact Weapon . | . . . . . . . . . . . . . . . . . . . . Slashing Weapon 12 | . . . . . . . . 1 . . 1 . 1 1 1 5 2 . . Piercing Weapon . | . . . . . . . . . . . . . . . . . . . . Special Melee Weapon 4 | . . . . . . . . 3 . 1 . . . . . . . . . Unidentified Prototypes 4 | . . . . . 1 . 3 . . . . . . . . . . . . Parts Lost 59 | . 4 3 5 . . . 6 9 . . 3 1 2 1 4 8 13 . . Power 5 | . . 1 . . . . . 2 . . 1 . . . . . 1 . . Propulsion 17 | . . 1 2 . . . 1 2 . . . 1 1 1 1 2 5 . . Utility 17 | . . . 1 . . . 2 1 . . 2 . . . 2 6 3 . . Weapon 20 | . 4 1 2 . . . 3 4 . . . . 1 . 1 . 4 . . Highest Loss Streak 11 | . 2 1 4 . . . 1 5 . . 3 1 1 1 1 3 11 . . Average Slot Usage (%) 92 | . 92 99 92 100 100 100 97 98 100 84 95 85 92 87 89 91 78 83 94 Engine 7 | . 14 14 11 11 11 11 9 8 9 7 7 5 6 6 6 4 1 5 5 Treads 9 | . . . 4 22 22 22 18 5 . 14 15 8 13 7 7 . . . . Leg 6 | . 28 27 15 . . . . 12 18 . . . . . 4 10 5 8 11 Device 2 | . . . 4 11 . . 8 10 . . . . . . . . 2 . . Storage 28 | . 22 28 22 22 32 33 35 35 36 30 30 26 26 26 26 23 20 21 23 Hackware 15 | . . . . . . . . 5 18 15 23 27 25 26 23 28 31 30 35 Protection 4 | . . . 12 11 11 11 7 . . . 1 3 6 6 6 8 1 3 5 Energy Gun 3 | . 8 . 4 11 11 11 8 10 . . . . . . . . . . . Ballistic Gun 4 | . 18 27 17 11 11 11 8 3 . . . . . . . . . . . Special Weapon 2 | . . . . . . . . . . . 6 5 5 6 4 2 1 4 5 Slashing Weapon 4 | . . . . . . . . . 9 7 7 6 5 5 6 7 6 5 5 Naked Turns . | . . . . . . . . . . . . . . . . . . . . Heaviest Build 112 | 11 54 39 61 61 76 63 85 85 75 82 83 95 108 100 104 112 77 94 93 Greatest Support 70 | 20 20 20 40 40 40 40 42 40 30 50 50 50 50 50 48 40 70 40 40 Greatest Overweight (x) 23 | . 2 1 4 1 1 1 2 4 2 2 1 23 2 3 4 3 17 4 2 Average Overweight (x) 1 | . . 1 1 1 1 1 1 2 2 1 1 2 1 2 2 2 3 2 2 Largest Inventory Capacity 34 | . 18 16 18 18 24 22 28 28 28 28 28 28 34 28 28 28 28 28 28 Average Capacity 25 | . 13 16 16 18 23 22 27 27 28 28 28 28 28 28 28 28 25 26 28 Most Carried 28 | . 9 11 16 17 22 22 28 28 28 28 28 27 28 28 28 28 28 28 28 Average Carried 24 | . 7 9 13 16 20 22 26 26 27 26 27 25 26 27 27 26 22 24 28 Final Capacity 28 | 6 16 16 18 18 22 22 28 28 28 28 28 28 28 28 28 28 22 28 28 Final Carried 28 | 6 9 10 16 17 22 22 28 28 27 28 28 26 28 28 28 28 21 28 28 Class Distribution -------------------- 44% | Bothacker-Mutant 21% | Botlord-Mutant 19% | Hauler-Mutant 8% | Mutant 5% | Scavenger-Mutant Dominant Class ---------------- Mutant | -10/Materials Mutant | -10/Mines Mutant | -9/Materials Scavenger-Mutant | -9/Mines Hauler-Mutant | -9/Exiles Hauler-Mutant | -8/Mines Hauler-Mutant | -8/Materials Bothacker-Mutant | -8/Garrison Bothacker-Mutant | -8/Materials Bothacker-Mutant | -7/Factory Bothacker-Mutant | -7/Garrison Bothacker-Mutant | -6/Factory Bothacker-Mutant | -6/Garrison Bothacker-Mutant | -6/Factory Bothacker-Mutant | -6/Garrison Botlord-Mutant | -5/Factory Botlord-Mutant | -5/Garrison Botlord-Mutant | -5/Factory Botlord-Mutant | -5/Garrison Resources | -11 -10 -10 -9 -9 -9 -8 -8 -8 -8 -7 -7 -6 -6 -6 -6 -5 -5 -5 -5 ----------- Run | Scr Mat Min Mat Min Exi Min Mat Gar Mat Fac Gar Fac Gar Fac Gar Fac Gar Fac Gar Matter Collected 3313 | 200 140 62 105 11 . . 441 412 . 140 245 248 258 . 350 336 168 197 . Remotely . | . . . . . . . . . . . . . . . . . . . . Salvage Created 5657 | . 298 140 384 . . . 960 782 . . 388 . 448 . 774 1056 258 169 . Parts 265 | . 20 5 24 . . . 68 36 . . 12 . 15 . 29 36 8 12 . Haulers Intercepted 4 | . 1 . 1 . . . 2 . . . . . . . . . . . . Recyclers Shooed 3 | . 1 . . . . . 1 . . . . 1 . . . . . . . Parts Field Recycled . | . . . . . . . . . . . . . . . . . . . . Retrieved Matter . | . . . . . . . . . . . . . . . . . . . . Parts Self-Destructed . | . . . . . . . . . . . . . . . . . . . . Prevented . | . . . . . . . . . . . . . . . . . . . . Kills | -11 -10 -10 -9 -9 -9 -8 -8 -8 -8 -7 -7 -6 -6 -6 -6 -5 -5 -5 -5 ------- Run | Scr Mat Min Mat Min Exi Min Mat Gar Mat Fac Gar Fac Gar Fac Gar Fac Gar Fac Gar Combat Hostiles Destroyed 101 | . 10 5 7 . . . 24 19 . . 3 . 2 . 8 14 6 3 . Melee 27 | . . . . . . . . . . . 1 . 2 . 5 14 2 3 . Guns 56 | . 10 5 7 . . . 19 15 . . . . . . . . . . . Cannons 1 | . . . . . . . . 1 . . . . . . . . . . . AOE 15 | . . . . . . . 4 3 . . 2 . . . 2 . 4 . . Classes Destroyed 9 | . 3 . 1 . . . 2 . . . 1 . . . . 1 1 . . Worker 2 | . . . . . . . 2 . . . . . . . . . . . . Hauler 4 | . 1 . 1 . . . 2 . . . . . . . . . . . . Recycler 2 | . . . . . . . . . . . . . . . . 2 . . . Swarmer 30 | . 6 3 . . . . 11 7 . . 2 . . . 1 . . . . Grunt 47 | . 4 2 5 . . . 7 10 . . . . 2 . 4 10 2 1 . Brawler 1 | . . . . . . . . . . . . . . . . . 1 . . Sentry 11 | . . . 2 . . . 5 1 . . . . . . 2 1 . . . Hunter 7 | . . . . . . . 1 1 . . . . . . 2 . 3 . . Programmer 6 | . . . . . . . . . . . 1 . . . . 3 . 2 . Best Kill Streak 11 | . 6 2 5 . . . 11 4 . . 2 . 1 . 2 3 4 1 . Combat Bots Only 9 | . 6 2 5 . . . 9 4 . . 2 . 1 . 2 3 4 1 . Max Kills in Single Turn 3 | . 1 1 1 . . . 3 1 . . 2 . 1 . 1 1 2 1 . Gunslinging 1 | . . . . . . . 1 . . . . . . . . . . . . Exploded 3 | . . . . . . . 3 1 . . 2 . . . 1 . 2 . . Melee 1 | . . . . . . . . . . . 1 . 1 . 1 1 1 1 . Uniques/NPCs Destroyed . | . . . . . . . . . . . . . . . . . . . . Combat | -11 -10 -10 -9 -9 -9 -8 -8 -8 -8 -7 -7 -6 -6 -6 -6 -5 -5 -5 -5 -------- Run | Scr Mat Min Mat Min Exi Min Mat Gar Mat Fac Gar Fac Gar Fac Gar Fac Gar Fac Gar Damage Taken 13438 | . 580 269 533 . . . 1334 1435 30 282 494 304 1093 397 1373 1948 2883 437 46 Core 2139 | . 115 28 89 . . . 245 227 10 21 85 52 173 . 90 319 605 58 22 Absorbed by Shields 40 | . . . . . . . . 40 . . . . . . . . . . . Reduced by Siege Mode 43 | . . . . . . . . . . . . . . . . . 43 . . Core Remaining (%) 62 | 100 . 42 . . . 77 . . 12 . 84 . . . 62 . . . . Volleys Fired 372 | . 55 18 32 1 . . 67 64 . . 22 20 21 2 28 13 18 9 2 Largest 2 | . 2 2 2 2 . . 2 2 . . 1 1 2 1 1 1 1 1 1 Hottest 225 | . 100 40 85 85 . . 90 100 . . 39 30 78 30 39 40 69 225 40 Shots Fired 587 | . 98 36 64 2 . . 130 122 . . 22 20 22 2 28 13 17 9 2 Gun 439 | . 98 36 64 2 . . 128 104 . . . . . . . . 2 5 . Cannon 15 | . . . . . . . . 15 . . . . . . . . . . . Launcher 25 | . . . . . . . 2 3 . . 1 . 2 . 12 . 5 . . Special 108 | . . . . . . . . . . . 21 20 20 2 16 13 10 4 2 Kinetic 250 | . 60 36 50 1 . . 64 39 . . . . . . . . . . . Thermal 130 | . 38 . 14 1 . . 35 35 . . . . . . . . 2 5 . Explosive 7 | . . . . . . . 2 . . . . . . . 2 . 3 . . Electromagnetic 92 | . . . . . . . 29 48 . . 1 . 2 . 10 . 2 . . Robot Hit Streak 28 | . 8 6 28 1 . . 16 14 . . 14 6 8 3 7 4 9 13 3 Robot Miss Streak 6 | . 3 2 2 1 . . 3 6 . . 1 2 3 . 1 2 1 1 . Penetration Max . | . . . . . . . . . . . . . . . . . . . . Secondary Targets 4 | . 1 . . . . . 2 1 . . . . . . . . . . . Max Gunslinging Chain 1 | . 1 . . . . . 1 1 . . . . . . . . . . . Shots Hit Robots 601 | . 66 22 49 1 . . 106 93 5 10 42 18 32 2 43 71 23 16 2 Core Hits 224 | . 23 12 20 . . . 46 35 . . 10 1 9 . 23 24 16 5 . Critical Hits 9 | . . 1 . . . . . 2 . . . . 1 . . 3 1 1 . Critical Kills 4 | . . 1 . . . . . . . . . . 1 . . 1 1 . . Critical Parts Destroyed 5 | . . . . . . . . 2 . . . . . . . 2 . 1 . Melee Attacks 232 | . . . . . . . . 12 5 13 35 3 25 . 30 81 15 13 . Impact . | . . . . . . . . . . . . . . . . . . . . Slashing 209 | . . . . . . . . 2 . 5 35 3 25 . 30 81 15 13 . Piercing . | . . . . . . . . . . . . . . . . . . . . Sneak Attacks 18 | . . . . . . . . 2 5 1 1 1 . . 5 3 . . . Combat Hostiles 6 | . . . . . . . . . . . 1 . . . 5 . . . . Follow-up Attacks 11 | . . . . . . . . . . . . . . . . 9 2 . . Damage Inflicted 15086 | . 638 165 557 . . . 2021 1959 . 117 1625 152 1032 . 2197 2700 1469 454 . Guns 4485 | . 638 165 557 . . . 1690 1296 . . . . . . . . 38 101 . Cannons 281 | . . . . . . . . 281 . . . . . . . . . . . Explosions 2696 | . . . . . . . 331 348 . . 144 . 28 . 843 . 1002 . . Melee 7590 | . . . . . . . . . . 117 1481 152 1004 . 1354 2700 429 353 . Ramming 34 | . . . . . . . . 34 . . . . . . . . . . . Kinetic 1834 | . 277 165 330 . . . 687 375 . . . . . . . . . . . Thermal 2127 | . 361 . 227 . . . 571 732 . . 97 . . . . . 38 101 . Explosive 1224 | . . . . . . . 236 . . . . . . . 27 . 961 . . Electromagnetic 2277 | . . . . . . . 527 818 . . 47 . 28 . 816 . 41 . . Impact . | . . . . . . . . . . . . . . . . . . . . Slashing 7590 | . . . . . . . . . . 117 1481 152 1004 . 1354 2700 429 353 . Piercing . | . . . . . . . . . . . . . . . . . . . . Highest Corruption 11 | . . . . . . . 1 2 2 . 11 . . . . 2 3 7 7 Average Corruption 2 | . . . . . . . 1 1 2 . 3 . . . . 2 2 5 7 Corruption Purged . | . . . . . . . . . . . . . . . . . . . . Effects 73 | . . . . . . . 10 17 3 . 17 . . . . 2 5 17 2 Message Errors 28 | . . . . . . . 8 6 1 . 4 . . . . 1 1 6 1 Matter Fused 5 | . . . . . . . . . . . 2 . . . . . . 3 . Heat Flow Errors 7 | . . . . . . . . 4 1 . 1 . . . . . . 1 . Energy Discharges 12 | . . . . . . . 1 4 . . 3 . . . . . 2 2 . Parts Rejected 2 | . . . . . . . . . . . . . . . . . . 2 . Data Loss (minor) 13 | . . . . . . . 1 3 1 . 4 . . . . 1 1 1 1 Misdirections 2 | . . . . . . . . . . . 2 . . . . . . . . Targeting Errors 3 | . . . . . . . . . . . 1 . . . . . . 2 . Weapon Failures 1 | . . . . . . . . . . . . . . . . . 1 . . Overload Shots 1 | . . . . . . . . . . . . . . . . . . 1 . Overflow Damage 556 | . . . . . . . 12 5 . . 141 60 . . 19 243 72 4 . Projectiles 5 | . . . . . . . . 5 . . . . . . . . . . . Explosions 61 | . . . . . . . 12 . . . . . . . . . 49 . . Melee 490 | . . . . . . . . . . . 141 60 . . 19 243 23 4 . Knockbacks . | . . . . . . . . . . . . . . . . . . . . Impact . | . . . . . . . . . . . . . . . . . . . . Kinetic . | . . . . . . . . . . . . . . . . . . . . Secondary . | . . . . . . . . . . . . . . . . . . . . Self-Inflicted Damage 118 | . . . . . . . 40 34 . . . . . . 44 . . . . Shots 9 | . . . . . . . 2 3 . . . . . . 4 . . . . Rammed 5 | . . . . . . . . 5 . . . . . . . . . . . Targets Rammed 5 | . . . . . . . . 5 . . . . . . . . . . . Kicked . | . . . . . . . . . . . . . . . . . . . . Crushed . | . . . . . . . . . . . . . . . . . . . . Highest Temperature 334 | . 334 9 121 30 . . 99 248 241 . 148 10 45 27 30 88 32 240 24 Average Temperature 58 | . 108 6 38 16 . . 29 96 120 . 21 5 17 12 11 24 12 85 18 Received Heat Transfer 3317 | . 177 81 246 . . . 405 485 . 45 90 36 327 12 252 690 426 36 9 Effects 1 | . . . . . . . . . 1 . . . . . . . . . . Interference 1 | . . . . . . . . . 1 . . . . . . . . . . Siege Activations 1 | . . . . . . . . . . . . . . . . . 1 . . Total Turns 7 | . . . . . . . . . . . . . . . . . 7 . . Longest Duration 7 | . . . . . . . . . . . . . . . . . 7 . . Robots Corrupted 2 | . . . . . . . 1 . . . . . . . 1 . . . . Combat Hostiles 2 | . . . . . . . 1 . . . . . . . 1 . . . . Parts Fried 11 | . . . . . . . 3 5 . . . . . . 3 . . . . Impact Corruptions . | . . . . . . . . . . . . . . . . . . . . Robots Melted . | . . . . . . . . . . . . . . . . . . . . Combat Hostiles . | . . . . . . . . . . . . . . . . . . . . Parts Melted 6 | . 1 . . . . . 1 2 . . . . 1 . 1 . . . . Heat Transferred 4215 | . 1073 . 518 . . . 1247 1105 . . 50 . . . . . 74 148 . Parts Sabotaged . | . . . . . . . . . . . . . . . . . . . . Parts Stolen . | . . . . . . . . . . . . . . . . . . . . Parts Stripped . | . . . . . . . . . . . . . . . . . . . . Power Chain Reactions 4 | . . . . . . . 1 2 . . 1 . . . . . . . . Missiles Intercepted . | . . . . . . . . . . . . . . . . . . . . Alert | -11 -10 -10 -9 -9 -9 -8 -8 -8 -8 -7 -7 -6 -6 -6 -6 -5 -5 -5 -5 ------- Run | Scr Mat Min Mat Min Exi Min Mat Gar Mat Fac Gar Fac Gar Fac Gar Fac Gar Fac Gar Peak Influence 1171 | . 212 183 193 25 . . 530 1171 585 178 633 331 491 332 861 512 218 191 15 Initial 570 | . . 33 . 25 . . . 211 570 2 124 331 40 257 232 451 84 109 . Average 309 | . 78 77 54 18 . . 218 739 333 31 382 26 279 278 520 228 114 105 11 Maximum Alert Level 4 | . 1 . . . . . 2 4 2 . 2 1 2 1 3 2 1 . . Low Security (%) 47 | . 99 100 100 100 . 100 57 . 50 100 24 97 45 . . 46 79 100 100 Level 1 19 | . . . . . . . 14 10 1 . 28 2 30 100 40 22 20 . . Level 2 24 | . . . . . . . 27 36 48 . 47 . 23 . 39 30 . . . Level 3 7 | . . . . . . . . 38 . . . . . . 19 . . . . Level 4 1 | . . . . . . . . 14 . . . . . . . . . . . Level 5 . | . . . . . . . . . . . . . . . . . . . . High Security . | . . . . . . . . . . . . . . . . . . . . Max Security . | . . . . . . . . . . . . . . . . . . . . Squads Dispatched 23 | . 2 . 2 . . . . . 1 4 . 7 . . . 6 . 1 . Investigation 2 | . . . . . . . . . . . . 1 . . . 1 . . . Extermination 7 | . . . . . . . . . . 2 . 1 . . . 3 . 1 . Reinforcement 8 | . 2 . 2 . . . . . 1 1 . 1 . . . 1 . . . Assault . | . . . . . . . . . . . . . . . . . . . . Garrison 6 | . . . . . . . . . . 1 . 4 . . . 1 . . . Intercept . | . . . . . . . . . . . . . . . . . . . . Construction Impeded . | . . . . . . . . . . . . . . . . . . . . Haulers Reinforced . | . . . . . . . . . . . . . . . . . . . . Stealth | -11 -10 -10 -9 -9 -9 -8 -8 -8 -8 -7 -7 -6 -6 -6 -6 -5 -5 -5 -5 --------- Run | Scr Mat Min Mat Min Exi Min Mat Gar Mat Fac Gar Fac Gar Fac Gar Fac Gar Fac Gar Distress Signals 7 | . 3 . . 1 . . 2 . . . . . . . . . . 1 . Communications Jammed . | . . . . . . . . . . . . . . . . . . . . Distress Signals . | . . . . . . . . . . . . . . . . . . . . Times Spotted 297 | . 20 8 16 1 . . 40 43 1 10 26 12 26 3 30 26 24 9 2 Peak Tracking Total 10 | . 4 3 5 . . . 8 7 1 3 7 4 8 1 4 5 10 4 2 Tactical Retreats 35 | . . 2 2 . . . 5 14 . . 1 . 1 . 3 2 5 . . Traps | -11 -10 -10 -9 -9 -9 -8 -8 -8 -8 -7 -7 -6 -6 -6 -6 -5 -5 -5 -5 ------- Run | Scr Mat Min Mat Min Exi Min Mat Gar Mat Fac Gar Fac Gar Fac Gar Fac Gar Fac Gar Traps Triggered 38 | . 2 . . . . . 2 9 . . 4 3 8 . 9 1 . . . Indirectly . | . . . . . . . . . . . . . . . . . . . . Trap Hack Attempts 1 | . . . . . . . . 1 . . . . . . . . . . . Triggered . | . . . . . . . . . . . . . . . . . . . . Disarmed . | . . . . . . . . . . . . . . . . . . . . Reprogrammed . | . . . . . . . . . . . . . . . . . . . . Reused . | . . . . . . . . . . . . . . . . . . . . Traps Extracted . | . . . . . . . . . . . . . . . . . . . . Installed . | . . . . . . . . . . . . . . . . . . . . Triggered . | . . . . . . . . . . . . . . . . . . . . Machines | -11 -10 -10 -9 -9 -9 -8 -8 -8 -8 -7 -7 -6 -6 -6 -6 -5 -5 -5 -5 ---------- Run | Scr Mat Min Mat Min Exi Min Mat Gar Mat Fac Gar Fac Gar Fac Gar Fac Gar Fac Gar Machines Disabled 22 | . . . . . . . 1 5 . . 4 . 4 2 4 . 2 . . Max in Single Turn 1 | . . . . . . . 1 1 . . 1 . 1 . 1 . 1 . . Garrison Relay 18 | . . . . . . . . 4 . . 4 . 4 . 4 . 2 . . Machines Sabotaged . | . . . . . . . . . . . . . . . . . . . . Garrisons Compromised . | . . . . . . . . . . . . . . . . . . . . Overloaded Fab Kills . | . . . . . . . . . . . . . . . . . . . . Fab Network Shutdowns . | . . . . . . . . . . . . . . . . . . . . Hacking | -11 -10 -10 -9 -9 -9 -8 -8 -8 -8 -7 -7 -6 -6 -6 -6 -5 -5 -5 -5 --------- Run | Scr Mat Min Mat Min Exi Min Mat Gar Mat Fac Gar Fac Gar Fac Gar Fac Gar Fac Gar Machines Accessed 35 | . 3 1 5 . 2 . 8 . 3 5 . 2 . 1 . 3 . 2 . Terminals 22 | . 3 . 4 . . . 6 . 3 4 . 1 . . . 1 . . . Fabricators 1 | . . . . . . . . . . . . . . . . . . 1 . Repair Stations . | . . . . . . . . . . . . . . . . . . . . Recycling Units . | . . . . . . . . . . . . . . . . . . . . Scanalyzers 3 | . . . 1 . . . 1 . . . . . . . . 1 . . . Garrison Access 6 | . . . . . . . 1 . . 1 . 1 . 1 . 1 . 1 . Total Hacks 88 | . 8 1 11 . 2 . 34 . 8 10 . 3 . 1 . 8 . 2 . Successful 44 | . 2 1 6 . 2 . 20 . 3 3 . 2 . 1 . 2 . 2 . Failed 43 | . 6 . 5 . . . 13 . 5 7 . 1 . . . 6 . . . Catastrophic 6 | . . . . . . . 2 . 1 3 . . . . . . . . . Database Lockouts 1 | . . . . . . . 1 . . . . . . . . . . . . Manual 37 | . 7 . 5 . 1 . 18 . 6 . . . . . . . . . . Terminals 68 | . 8 . 9 . . . 28 . 8 9 . 2 . . . 4 . . . Fabricators 1 | . . . . . . . . . . . . . . . . . . 1 . Repair Stations . | . . . . . . . . . . . . . . . . . . . . Recycling Units . | . . . . . . . . . . . . . . . . . . . . Scanalyzers 10 | . . . 2 . . . 5 . . . . . . . . 3 . . . Garrison Access 6 | . . . . . . . 1 . . 1 . 1 . 1 . 1 . 1 . Terminal Hacks 23 | . 1 1 3 . 2 . 10 . 3 2 . 1 . . . . . . . Record 2 | . . . . . 1 . . . . 1 . . . . . . . . . Robot Analysis 5 | . 1 . 1 . . . 3 . . . . . . . . . . . . Prototype ID Bank 4 | . . . . . . . 3 . 1 . . . . . . . . . . Open Door 2 | . . 1 . . . . . . . . . 1 . . . . . . . Level Access Points 1 | . . . . . . . . . 1 . . . . . . . . . . Branch Access Points 1 | . . . 1 . . . . . . . . . . . . . . . . Unreport Threat 2 | . . . . . . . 1 . 1 . . . . . . . . . . Locate Traps 1 | . . . . . . . 1 . . . . . . . . . . . . Zone Layout 4 | . . . 1 . . . 2 . . 1 . . . . . . . . . EX-Prototype ID Bank 1 | . . . . . 1 . . . . . . . . . . . . . . Fabricator Hacks 1 | . . . . . . . . . . . . . . . . . . 1 . Build 1 | . . . . . . . . . . . . . . . . . . 1 . Repair Station Hacks . | . . . . . . . . . . . . . . . . . . . . Recycling Unit Hacks . | . . . . . . . . . . . . . . . . . . . . Scanalyzer 8 | . . . 2 . . . 5 . . . . . . . . 1 . . . Insert Component 5 | . . . 1 . . . 3 . . . . . . . . 1 . . . Analyze 3 | . . . 1 . . . 2 . . . . . . . . . . . . Garrison Access Hacks 6 | . . . . . . . 1 . . 1 . 1 . 1 . 1 . 1 . Unlock Access 6 | . . . . . . . 1 . . 1 . 1 . 1 . 1 . 1 . Unauthorized Hacks 6 | . 1 . 1 . . . 4 . . . . . . . . . . . . Terminals 6 | . 1 . 1 . . . 4 . . . . . . . . . . . . Botnet 5 | . 1 . 1 . . . 3 . . . . . . . . . . . . Operators 1 | . . . . . . . 1 . . . . . . . . . . . . Fabricators . | . . . . . . . . . . . . . . . . . . . . Repair Stations . | . . . . . . . . . . . . . . . . . . . . Recycling Units . | . . . . . . . . . . . . . . . . . . . . Scanalyzers . | . . . . . . . . . . . . . . . . . . . . Garrison Access . | . . . . . . . . . . . . . . . . . . . . Data Cores Recovered . | . . . . . . . . . . . . . . . . . . . . Used . | . . . . . . . . . . . . . . . . . . . . Hacking Detections 28 | . 3 . 5 . . . 7 . 3 4 . 2 . . . 3 . 1 . Full Trace Events 1 | . 1 . . . . . . . . . . . . . . . . . . Feedback Events . | . . . . . . . . . . . . . . . . . . . . Feedback Blocked . | . . . . . . . . . . . . . . . . . . . . Robot Schematics Acquired . | . . . . . . . . . . . . . . . . . . . . Robots Built . | . . . . . . . . . . . . . . . . . . . . Matter . | . . . . . . . . . . . . . . . . . . . . Time . | . . . . . . . . . . . . . . . . . . . . Total Robot Build Rating . | . . . . . . . . . . . . . . . . . . . . Part Schematics Acquired 3 | . . . 1 . . . 2 . . . . . . . . . . . . Parts Built . | . . . . . . . . . . . . . . . . . . . . Matter 256 | . . . . . . . . . . . . . . . . . . 256 . Time 128 | . . . . . . . . . . . . . . . . . . 128 . Total Part Build Rating . | . . . . . . . . . . . . . . . . . . . . Parts Repaired . | . . . . . . . . . . . . . . . . . . . . Time . | . . . . . . . . . . . . . . . . . . . . Parts Recycled . | . . . . . . . . . . . . . . . . . . . . Recycled Matter . | . . . . . . . . . . . . . . . . . . . . Retrieved Matter . | . . . . . . . . . . . . . . . . . . . . Retrieved Components . | . . . . . . . . . . . . . . . . . . . . Parts Scanalyzed 4 | . . . 1 . . . 2 . . . . . . . . 1 . . . Part Schematics Acquired 3 | . . . 1 . . . 2 . . . . . . . . . . . . Parts Damaged . | . . . . . . . . . . . . . . . . . . . . Bothacking | -11 -10 -10 -9 -9 -9 -8 -8 -8 -8 -7 -7 -6 -6 -6 -6 -5 -5 -5 -5 ------------ Run | Scr Mat Min Mat Min Exi Min Mat Gar Mat Fac Gar Fac Gar Fac Gar Fac Gar Fac Gar Used RIF Installer 5 | . . . . . . . . 1 . . 1 . 1 . 1 . 1 . . Coupler Efficiency 1 | . . . . . . . . . . . 1 . . . . . . . . Hotswap 1 | . . . . . . . . . . . . . 1 . . . . . . Patrol Navigation 1 | . . . . . . . . . . . . . . . 1 . . . . Autoassimilate 1 | . . . . . . . . . . . . . . . . . 1 . . Robots Hacked 83 | . . . . . . . . 7 1 6 13 12 13 2 12 7 8 1 1 Non-combat 10 | . . . . . . . . . 1 1 . 5 . . . 3 . . . Combat 73 | . . . . . . . . 7 . 5 13 7 13 2 12 4 8 1 1 Autoassimilated 2 | . . . . . . . . . . . . . . . . . 2 . . Robot Hacks Applied 96 | . . . . . . . . 7 4 7 15 17 13 2 12 9 7 2 1 parse_system 4 | . . . . . . . . . . . 2 2 . . . . . . . no_distress 3 | . . . . . . . . . . 1 . 2 . . . . . . . deconstruct_machine 1 | . . . . . . . . . . . . 1 . . . . . . . purge_threat 7 | . . . . . . . . . 3 . . 2 . . . 2 . . . map_route 2 | . . . . . . . . . . . . . . . . 2 . . . find_garrison 5 | . . . . . . . . . . 1 . 1 . 1 . 1 . 1 . scatter_targeting 1 | . . . . . . . . . . . 1 . . . . . . . . disrupt_area 1 | . . . . . . . . . . . . . . . 1 . . . . amplify_resonance 1 | . . . . . . . . . . . 1 . . . . . . . . reboot_system 1 | . . . . . . . . . . . . . . . 1 . . . . overwrite_iff 14 | . . . . . . . . 1 . . . 1 6 . 3 . 3 . . formatsys_low 5 | . . . . . . . . . 1 . . 3 . . . 1 . . . formatsys_high 51 | . . . . . . . . 6 . 5 11 5 7 1 7 3 4 1 1 Relay Couplers Released 75 | . . . . . . . . 18 . . 16 . 17 . 18 . 6 . . Machine Destruction 75 | . . . . . . . . 18 . . 16 . 17 . 18 . 6 . . Attached 35 | . . . . . . . . 5 2 3 8 6 3 . 3 2 2 1 . Robots Rewired . | . . . . . . . . . . . . . . . . . . . . Allies Hacked 1 | . . . . . . . . . . . 1 . . . . . . . . Hacks Repelled . | . . . . . . . . . . . . . . . . . . . . Allies | -11 -10 -10 -9 -9 -9 -8 -8 -8 -8 -7 -7 -6 -6 -6 -6 -5 -5 -5 -5 -------- Run | Scr Mat Min Mat Min Exi Min Mat Gar Mat Fac Gar Fac Gar Fac Gar Fac Gar Fac Gar Total Allies 72 | . . . . 1 . . . 7 1 5 11 9 13 1 10 4 8 1 1 Largest Group 10 | . . . . 1 . . . 3 2 7 10 10 7 6 4 4 5 1 1 Highest-Rated Group 259 | . . . . 31 . . . 30 41 201 249 259 216 199 128 134 132 30 49 Highest-Rated Ally 49 | . . . . 31 . . . 29 26 32 32 41 47 47 32 47 49 30 49 Total Orders 59 | . . . . . . . . 2 . 9 20 2 8 4 9 3 1 . 1 STAY 34 | . . . . . . . . 1 . 4 12 1 4 2 5 3 1 . 1 FOLLOW 25 | . . . . . . . . 1 . 5 8 1 4 2 4 . . . . Ally Attacks 337 | . . . . 1 . . . 39 . 13 32 42 77 2 71 43 15 2 . Total Damage 8274 | . . . . 22 . . . 355 . 625 857 1383 1583 373 1946 660 410 60 . Kills 62 | . . . . 1 . . . 4 . 6 8 10 13 2 14 3 1 . . Allies Corrupted . | . . . . . . . . . . . . . . . . . . . . Allies Melted 1 | . . . . . . . . . . . . . . . . 1 . . . Intel | -11 -10 -10 -9 -9 -9 -8 -8 -8 -8 -7 -7 -6 -6 -6 -6 -5 -5 -5 -5 ------- Run | Scr Mat Min Mat Min Exi Min Mat Gar Mat Fac Gar Fac Gar Fac Gar Fac Gar Fac Gar Robot Analysis Total 5 | . 1 . 1 . . . 3 . . . . . . . . . . . . Derelict Logs Recovered 2 | . . 1 . 1 . . . . . . . . . . . . . . . Drone Launches . | . . . . . . . . . . . . . . . . . . . . Drone Recoveries . | . . . . . . . . . . . . . . . . . . . . Exploration | -11 -10 -10 -9 -9 -9 -8 -8 -8 -8 -7 -7 -6 -6 -6 -6 -5 -5 -5 -5 ------------- Run | Scr Mat Min Mat Min Exi Min Mat Gar Mat Fac Gar Fac Gar Fac Gar Fac Gar Fac Gar Turns Passed 16025 | . 624 438 552 537 506 159 1479 1967 291 688 1618 496 1716 200 2318 1298 564 501 73 Spaces Moved 6964 | 1 315 246 246 297 273 89 609 739 153 338 796 201 759 89 845 506 212 213 37 Core 4 | . . . . . . . . . . . . 1 . . . . 3 . . Treads 4202 | . . . 61 297 273 89 609 201 . 316 796 200 759 89 498 . 14 . . Legs 2758 | 1 315 246 185 . . . . 538 153 22 . . . . 347 506 195 213 37 Wheels . | . . . . . . . . . . . . . . . . . . . . Hover . | . . . . . . . . . . . . . . . . . . . . Flight . | . . . . . . . . . . . . . . . . . . . . Fastest Speed 120 | 120 120 150 150 180 180 180 172 150 180 172 172 172 172 172 200 150 180 150 180 Average Speed 186 | 120 144 150 176 180 180 180 185 211 180 173 172 207 174 207 207 194 220 194 180 Slowest Speed 1200 | 120 180 150 240 180 180 180 200 240 180 200 172 1200 192 220 240 210 900 240 180 Overloaded Moves . | . . . . . . . . . . . . . . . . . . . . Propulsion Burnouts . | . . . . . . . . . . . . . . . . . . . . Robots Hopped . | . . . . . . . . . . . . . . . . . . . . Cave-ins Triggered . | . . . . . . . . . . . . . . . . . . . . Exploration Rate (%) 42 | 1 69 81 26 56 61 26 68 89 22 9 88 7 86 3 76 14 44 14 10 Regions Visited 19 Branch Regions 4 Pre-discovered Areas 1 | . . . . . 1 . . . . . . . . . . . . . . Known Exits Taken 9 | . . 1 1 . . . 1 . 1 1 . 1 . 1 . 1 . 1 . Unknown Exits Taken 5 | 1 1 . . 1 1 1 . . . . . . . . . . . . . Scrap Searched 3 | . . 1 . 2 . . . . . . . . . . . . . . . Spaces Dug 1 | . . . . . . . . . . 1 . . . . . . . . . Terrain Destroyed 65 | . . . . . . . 20 5 . 1 6 . . . 22 . 10 1 . Melee 1 | . . . . . . . . . . 1 . . . . . . . . . Projectile 1 | . . . . . . . . . . . . . . . . . . 1 . AOE 63 | . . . . . . . 20 5 . . 6 . . . 22 . 10 . . Terrain Rammed . | . . . . . . . . . . . . . . . . . . . . Walls Destroyed . | . . . . . . . . . . . . . . . . . . . . Machines Disabled . | . . . . . . . . . . . . . . . . . . . . Actions | -11 -10 -10 -9 -9 -9 -8 -8 -8 -8 -7 -7 -6 -6 -6 -6 -5 -5 -5 -5 --------- Run | Scr Mat Min Mat Min Exi Min Mat Gar Mat Fac Gar Fac Gar Fac Gar Fac Gar Fac Gar Total 9205 | . 393 286 311 298 288 88 849 1021 166 428 978 264 1101 104 1339 700 278 270 43 Wait 1048 | . 7 16 3 . . . 93 84 . 51 68 20 236 9 371 68 7 11 4 Move 6950 | . 314 245 245 296 272 88 609 738 152 338 795 201 758 88 844 506 211 213 37 Hop . | . . . . . . . . . . . . . . . . . . . . Pick Up 183 | . 6 4 16 1 7 . 31 29 2 8 19 3 17 1 12 7 8 12 . Fast Attach 39 | . 5 . 2 . . . 3 2 . 1 1 5 4 1 4 3 3 5 . Attach 82 | . 3 3 6 . . . 8 10 . 5 8 7 7 . 6 6 11 2 . Detach 9 | . . . 1 . . . . . . 1 . 3 2 . 1 . 1 . . Swap 92 | . 2 . 1 . 5 . 14 17 4 4 6 2 4 1 9 17 3 3 . Drop 113 | . 1 . 5 . 4 . 24 22 3 5 16 . 11 2 7 8 3 2 . Fire 372 | . 55 18 32 1 . . 67 64 . . 22 20 21 2 28 13 18 9 2 Melee 220 | . . . . . . . . 12 5 13 35 3 25 . 30 71 13 13 . Ram . | . . . . . . . . . . . . . . . . . . . . Kick . | . . . . . . . . . . . . . . . . . . . . Crush 5 | . . . . . . . . 5 . . . . . . . . . . . Escape Stasis 85 | . . . . . . . . 34 . . 8 . 16 . 27 . . . . Rewire 6 | . . . . . . . . 3 . 2 . . . . . 1 . . . Trap 1 | . . . . . . . . 1 . . . . . . . . . . . Miscellaneous . | . . . . . . . . . . . . . . . . . . . . Route ------- -11/Scrapyard -10/Materials (discovered 3 exits: *Mat x2 / *Min) -10/Mines (discovered 2 exits: *Mat x2) -9/Materials (discovered 2 exits: *Min x2) -9/Mines (discovered 2 exits: *Mat / *Exi) -9/Exiles -8/Mines -8/Materials (discovered 4 exits: *Fac x2 / [*Sto] / Gar) -8/Garrison (discovered 3 exits: *Mat x3) -8/Materials (discovered 3 exits: *Fac x3) -7/Factory (discovered 2 exits: [*Low] / Gar) -7/Garrison (discovered 3 exits: *Fac x3) -6/Factory (discovered 2 exits: [*Ext] / Gar) -6/Garrison (discovered 3 exits: *Fac x3) -6/Factory -6/Garrison (discovered 3 exits: *Fac x3) -5/Factory (discovered 2 exits: *Upp / Gar) -5/Garrison -5/Factory -5/Garrison History --------- Turn | Location | Event 1 | -11/Scrapyard | Discovered new exit (range 0) 1 | -11/Scrapyard | Entered Materials 236 | -10/Materials | Discovered new exit (range 3) 326 | -10/Materials | Build established: Mutant 357 | -10/Materials | Discovered new exit (range 9) 515 | -10/Materials | Discovered new exit (range 8) 625 | -10/Materials | Entered Mines 712 | -10/Mines | Core integrity fell below 50% 806 | -10/Mines | Met a Derelict who couldn't figure out how to use a Trap Extractor 925 | -10/Mines | Identified exit to Materials 1048 | -10/Mines | Discovered exit to Materials (range 9) 1063 | -10/Mines | Entered Materials 1063 | -9/Materials | Evolved 2 slots: Utility x2 1103 | -9/Materials | Identified exit to Mines 1458 | -9/Materials | Lost 4 parts (1n1u2w) 1615 | -9/Materials | Entered Mines 1624 | -9/Mines | Learned Materials stockpile data 1687 | -9/Mines | Build established: Scavenger-Mutant 1705 | -9/Mines | Assembled infested the area 1707 | -9/Mines | Received a Mining Laser from a helpful Derelict 2055 | -9/Mines | Discovered new exit (range 6) 2145 | -9/Mines | Deemed a non-threat by the Exiles lab entrance 2145 | -9/Mines | Discovered new exit (range 5) 2152 | -9/Mines | Entered Exiles 2196 | -9/Exiles | Met 8R-AWN 2265 | -9/Exiles | Met EX-HEX 2315 | -9/Exiles | Met EX-BIN 2341 | -9/Exiles | Aligned with FarCom system 2342 | -9/Exiles | Given EX-Vault access code 2387 | -9/Exiles | Opened EX-Vault 2404 | -9/Exiles | Found Chronowheel 2444 | -9/Exiles | Warned to stay clear of 0b10 Research branches 2483 | -9/Exiles | Build established: Hauler-Mutant 2498 | -9/Exiles | Met EX-DEC 2509 | -9/Exiles | Learned location of Zion (-7) 2638 | -9/Exiles | Discovered new exit (range 14) 2658 | -9/Exiles | Left Exiles lab with Chronowheel 2658 | -9/Exiles | Entered Mines 2712 | -8/Mines | Discovered new exit (range 16) 2817 | -8/Mines | Entered Materials 2817 | -8/Materials | Evolved 2 slots: Utility x2 2901 | -8/Materials | Discovered new exit (range 16) 3213 | -8/Materials | Discovered new exit (range 16) 3797 | -8/Materials | Destroyed 9 combat bots 3889 | -8/Materials | Discovered new exit (range 16) 3963 | -8/Materials | Central database locked down 4296 | -8/Materials | Identified exit to Garrison 4296 | -8/Materials | Entered Garrison 4390 | -8/Garrison | Triggered checkpoint 4428 | -8/Garrison | Triggered checkpoint 4451 | -8/Garrison | Core integrity fell below 50% 4526 | -8/Garrison | Lost 3 parts (1u2w) 4594 | -8/Garrison | Discovered new exit (range 15) 4754 | -8/Garrison | Discovered new exit (range 11) 4788 | -8/Garrison | Installed Relay Interface Framework 4923 | -8/Garrison | Lost 5 parts (1p2n2w) 5206 | -8/Garrison | Triggered checkpoint 5255 | -8/Garrison | Garrison Relay disabled 5468 | -8/Garrison | Triggered checkpoint 5516 | -8/Garrison | Garrison Relay disabled 5580 | -8/Garrison | Build established: Bothacker-Mutant 5586 | -8/Garrison | Triggered checkpoint 5729 | -8/Garrison | Discovered new exit (range 8) 5758 | -8/Garrison | Triggered checkpoint 5763 | -8/Garrison | Core integrity fell below 20% 5799 | -8/Garrison | Garrison Relay disabled 5912 | -8/Garrison | Triggered checkpoint 6048 | -8/Garrison | Triggered checkpoint 6109 | -8/Garrison | Garrison Relay disabled 6263 | -8/Garrison | Entered Materials 6263 | -8/Materials | Accompanied by 2 allies 6444 | -8/Materials | Identified exit to Factory 6554 | -8/Materials | Entered Factory 6554 | -7/Factory | Accompanied by 2 allies 6554 | -7/Factory | Evolved 2 slots: Utility x2 6708 | -7/Factory | Discovered new exit (range 16) 7136 | -7/Factory | P-60 Hacker assimilated allied Guardian 4d 7215 | -7/Factory | Garrison activated, responded to threat 7240 | -7/Factory | Identified exit to Garrison 7242 | -7/Factory | Entered Garrison 7242 | -7/Garrison | Accompanied by 4 allies 7312 | -7/Garrison | Triggered checkpoint 7342 | -7/Garrison | Garrison Relay disabled 7517 | -7/Garrison | Found Hvy. Insulated Plating 7520 | -7/Garrison | Found Hvy. Insulated Plating 7622 | -7/Garrison | Triggered checkpoint 7623 | -7/Garrison | Triggered checkpoint 7713 | -7/Garrison | Discovered new exit (range 8) 7810 | -7/Garrison | Triggered checkpoint 7853 | -7/Garrison | Garrison Relay disabled 8022 | -7/Garrison | Triggered checkpoint 8126 | -7/Garrison | Triggered checkpoint 8143 | -7/Garrison | Garrison Relay disabled 8179 | -7/Garrison | Discovered new exit (range 15) 8484 | -7/Garrison | Triggered checkpoint 8531 | -7/Garrison | Discovered new exit (range 13) 8561 | -7/Garrison | Expanded RIF knowledge: Coupler Efficiency 8624 | -7/Garrison | Triggered checkpoint 8636 | -7/Garrison | System corruption reached 10% 8658 | -7/Garrison | Garrison Relay disabled 8666 | -7/Garrison | Lost 3 parts (1p2u) 8860 | -7/Garrison | Entered Factory 8860 | -6/Factory | Accompanied by 9 allies 8860 | -6/Factory | Evolved 2 slots: Utility x2 8941 | -6/Factory | Garrison activated, responded to threat 9090 | -6/Factory | Discovered new exit (range 10) 9265 | -6/Factory | Garrison activated, responded to threat 9356 | -6/Factory | Identified exit to Garrison 9356 | -6/Factory | Entered Garrison 9356 | -6/Garrison | Accompanied by 2 allies 9416 | -6/Garrison | Triggered checkpoint 9441 | -6/Garrison | Garrison Relay disabled 9741 | -6/Garrison | Spotted B-75 Beast 9810 | -6/Garrison | Triggered checkpoint 9883 | -6/Garrison | Allies destroyed B-75 Beast 9987 | -6/Garrison | Discovered new exit (range 10) 10020 | -6/Garrison | Expanded RIF knowledge: Hotswap 10086 | -6/Garrison | Triggered checkpoint 10184 | -6/Garrison | Garrison Relay disabled 10256 | -6/Garrison | Triggered checkpoint 10310 | -6/Garrison | Triggered checkpoint 10368 | -6/Garrison | Discovered new exit (range 8) 10415 | -6/Garrison | Garrison Relay disabled 10426 | -6/Garrison | Triggered checkpoint 10590 | -6/Garrison | Discovered new exit (range 14) 10656 | -6/Garrison | Triggered checkpoint 10690 | -6/Garrison | Garrison Relay disabled 10798 | -6/Garrison | Triggered checkpoint 11072 | -6/Garrison | Entered Factory 11072 | -6/Factory | Accompanied by 6 allies 11261 | -6/Factory | Identified exit to Garrison 11272 | -6/Factory | Entered Garrison 11272 | -6/Garrison | Accompanied by 3 allies 11354 | -6/Garrison | Triggered checkpoint 11441 | -6/Garrison | Garrison Relay disabled 12002 | -6/Garrison | Triggered checkpoint 12212 | -6/Garrison | Triggered checkpoint 12360 | -6/Garrison | Triggered checkpoint 12364 | -6/Garrison | Discovered new exit (range 14) 12408 | -6/Garrison | Expanded RIF knowledge: Watcher Feeds 12486 | -6/Garrison | Triggered checkpoint 12515 | -6/Garrison | Garrison Relay disabled 12707 | -6/Garrison | Build established: Botlord-Mutant 12943 | -6/Garrison | Discovered new exit (range 12) 13062 | -6/Garrison | Discovered new exit (range 11) 13092 | -6/Garrison | Triggered checkpoint 13127 | -6/Garrison | Garrison Relay disabled 13513 | -6/Garrison | Garrison Relay disabled 13590 | -6/Garrison | Entered Factory 13590 | -5/Factory | Accompanied by 1 ally 13590 | -5/Factory | Evolved 2 slots: Utility x2 14629 | -5/Factory | Discovered new exit (range 28) 14710 | -5/Factory | Identified exit to Upper Caves 14833 | -5/Factory | Garrison activated, responded to threat 14874 | -5/Factory | Lost 3 parts (2n1u) 14888 | -5/Factory | Identified exit to Garrison 14888 | -5/Factory | Entered Garrison 14897 | -5/Garrison | Expanded RIF knowledge: Autoassimilate 14984 | -5/Garrison | Triggered checkpoint 15022 | -5/Garrison | Garrison Relay disabled 15144 | -5/Garrison | Spotted B-75 Beast 15149 | -5/Garrison | Triggered checkpoint 15162 | -5/Garrison | Triggered checkpoint 15188 | -5/Garrison | Core integrity fell below 50% 15245 | -5/Garrison | Activated Chronowheel 15265 | -5/Garrison | Lost 11 parts (1p4n2u4w) 15294 | -5/Garrison | Core integrity fell below 20% 15330 | -5/Garrison | Triggered checkpoint 15333 | -5/Garrison | Garrison Relay disabled 15423 | -5/Garrison | Discovered new exit (range 15) 15452 | -5/Garrison | Entered Factory 15953 | -5/Factory | Identified exit to Garrison 15953 | -5/Factory | Entered Garrison 16014 | -5/Garrison | Triggered checkpoint 16026 | -5/Garrison | Destroyed by Y-64 Sentinel with KE Penetrator Last Messages --------------- 15951_ >> Watcher Feeds: Feed link from W-25 Informer lost. 15951_ >> Watcher Feeds: Established visual feed link with W-25 Informer. 15952_ >> Watcher Feeds: Feed link from W-25 Informer lost. 15952_ ALERT: Rogue bot located, Programmers report to Factory Zone 5J. 15953_ Connecting with Garrison Access... >>Unlock Access door unlocked. 15953_ EXIT=UNLOCKED: GARRISON LOCATION=GARRISON GOAL=ESCAPE 15953_ Receiving FarCom transmissions... 15970_ Jacked Y-64 Sentinel... >>formatsys_high Rerouting network defenses. Erasing system data. Installing primary routines, ETC: 6. 15971_ Reactivated Sentinel 6c. 15979_ System corrupted: Component data lost. 16005_ BMH=PU2Y4GWYTEQ92CK5NJ0&MISK9 [Achievement: Collector] Map ----- +----------------------------------------------------+ | ???????????????????# #???????????????????????? | | ???????????????????### #???????????????????????? | | ?????????????????????# #???????????????????????? | | ?????????????????????# #???????????????????????? | | ?????????????????????# #???????????????????????? | | ?????????????????????# #???????????????????????? | | ?????????????????????# #???????????????????????? | | ?????????????????????# #???????????????????????? | | ?????????????????????# ##??????????????????????? | | ?????????????????????# #??????????????????????? | | ?????????????????????# ##??????????????????????? | | ?????????????????????# #???????????????????????? | | ?????????????????????# #???????????????????????? | | ?????????????????????# #???????????????????????? | | ?????????????????????# #???????Y???????????????? | | ????????????????Y????# #???????????????????????? | | ?????????????????????# #???????????????????????? | | ?????????????????????# #???????????????????????? | | ?????????????????????# #???????????????????????? | | ?????????????????????# #???????????????????????? | | ?????????????????????# #???????????????????????? | | ?????????????????????#Y #???????????????????????? | | ?????????????????????# #??????#????????????????? | | ?????????????????????# #????? #????????????????? | | ?????????????????##### ###### #????????????????? | | ????????????????# @ Y #????????????????? | | ????????????????# #### ########????????????????? | | ?????????????????????# #???????????????????????? | | ?????????????????????# #???????????????????????? | | ?????????????????????# #???????????????????????? | | ?????????????????????# #???????????????????????? | | ?????????????????????# #???????????????????????? | | ????????????????????? #???????????????????????? | | ???????????????????? #???????????????????????? | | ???????????????????? #???????????????????????? | | ???????????????????######????????????????????????? | | ?????????????????????????????????????????????????? | | ????????????g????????????????????????????????????? | | ????????????g????????????????????????????????????? | | ?????????????????????????????????????????????????? | | ????????????g????????????????????????????????????? | | ?????????????????????????????????????????????????? | | ?????????????????????????????????????????????????? | | ?????????????????????????????????????????????????? | | ?????????????????????????????????????????????????? | | ?????????????????????????????????????????????????? | | ?????????????????????????????????????????????????? | | ?????????????????????????????????????????????????? | | ?????????????????????????????????????????????????? | | ?????????????????????????????????????????????????? | +----------------------------------------------------+ Best States ------------- Heat Dissipation 64 Energy Generation 18 Energy Capacity 290 Matter Stores 300 Matter Capacity 300 Sight Range 16 Terrain Scan Density 10 Armor Coverage 825 Resistance: EM 30 Evasion (%) 40 Recoil Reduction 2 Relay Coupler Types 116 Relay Coupler Value 6 Item Schematics ----------------- Lrg. Storage Unit | -9/Materials | Scanalyzed Imp. Datajack | -8/Materials | Scanalyzed Hcp. Battery | -8/Materials | Scanalyzed Robot Schematics ------------------ None Fabricated ------------ Nothing Alien Tech Used ----------------- None Achievements -------------- Collector Challenges ------------ None Game ------ Seed SwarmSpreadCarapace Manual? 0 Play Time 02:54:00 Cumulative 141.3 hours Start 2021.02.25 @ 01:36:57 End 2021.02.25 @ 12:18:26 Sessions 2 Manual Loads 0 Difficulty Rogue Special Mode None Game No. 68 Rogue 63 Adventurer 5 Explorer 0 Win Type - Total 5 Types 3/0/1/1/0/0/0/0/0 Lore% 66 Gallery% 75 Achievement% 57 Wizard Run 0 Options --------- ASCII 0 Keyboard 0 Movement Mouse Keybinds 0 Fullscreen 2 Font 18/Terminus Map View 76x50 Tactical HUD 1 Map Filters NONE Filters NONE Steam 0 RUN: 5daffaa5-7906-41f6-bf4a-a055576f0a86